[Event "Asian Zonal-ch 3.5 Women 2019"]
[Site "Zi Bo"]
[Date "2019.09.07"]
[Round "4.2"]
[White "Li, Yunshan"]
[Black "Zhai, Mo"]
[Result "0-1"]
[ECO "E52"]
[WhiteElo "2261"]
[BlackElo "2360"]
[Annotator "RC"]
[PlyCount "76"]
[EventDate "2019.09.05"]
[EventType "swiss"]
[EventCountry "CHN"]
[SourceTitle "playchess.com"]
[Source "ChessBase"]
[SourceQuality "1"]
[TimeControl "5400+30"]

1. d4 {[%emt 0:00:00]} Nf6 {[%emt 0:00:00]} 2. c4 {[%emt 0:00:00]} e6 {[%emt 0:00:00]} 3. Nc3 {[%emt 0:00:10]} Bb4 {[%emt 0:00:00]} 4. Nf3 {[%emt 0:00:24]} O-O {[%emt 0:00:17]} 5. e3 {[%emt 0:00:56]} d5 {[%emt 0:00:17]} 6. Bd2 {[%emt 0:00:42]} b6 {[%emt 0:00:48]} 7. cxd5 {[%emt 0:00:40]} exd5 {[%emt 0:00:07]} 8. Rc1 {[%emt 0:00:19]} a6 {[%emt 0:02:00]} 9. Bd3 {[%emt 0:01:22]} Bb7 {[%emt 0:00:25]} 10. O-O {[%emt 0:00:53]} Bd6 {[%emt 0:00:29]} 11. Ne5 {[%emt 0:00:56]} c5 {[%emt 0:00:09]} 12. f4 {[%emt 0:04:15]} Nc6 {[%emt 0:00:24]} 13. Ng4 {[%emt 0:10:07]} Nxg4 {[%emt 0:05:49]} 14. Qxg4 {[%emt 0:00:09]} c4 {[%emt 0:00:46]} 15. Bb1 {[%emt 0:02:22]} Ne7 {[%emt 0:00:11]} 16. f5 {[%emt 0:19:11]} f6 {[%emt 0:01:47]} 17. Rf3 {[%emt 0:05:26]} b5 {[%emt 0:04:05]} 18. Rh3 {[%emt 0:01:37]} Rf7 {[%emt 0:03:48]} 19. e4 {[%emt 0:04:41]} Qb6 {[%emt 0:10:31]} 20. exd5 {[%emt 0:09:37]} Nxd5 {[%emt 0:20:07]} 21. Qh4 {[%emt 0:00:43]} Kf8 {[%emt 0:03:47]} 22. Nxd5 {[%emt 0:06:29]} Bxd5 {[%emt 0:00:30]} 23. Qxh7 {[%emt 0:03:53]} Qxd4+ {[%emt 0:03:29]} 24. Be3 {[%emt 0:00:10]} Qxb2 {[%emt 0:09:03]} 25. Qg6 {[%emt 0:00:42]} Re8 {[%emt 0:06:48]} 26. Re1 {[%emt 0:13:04]} Re5 {[%emt 0:03:50]} 27. Qg3 {[%emt 0:07:34]} Rfe7 {[%emt 0:08:45]} 28. Rh8+ {[%emt 0:00:48]} Bg8 {[%emt 0:00:06]} 29. Rd1 {[%emt 0:01:01]} c3 {[%emt 0:03:43]} 30. h4 {[%emt 0:03:17]} Bc7 {[%emt 0:07:54]} 31. Bf4 {[%emt 0:02:39]} c2 {[%emt 0:00:17]} 32. Bxc2 {[%emt 0:00:13]} Qxc2 {[%emt 0:00:04]} 33. Rf1 {[%emt 0:00:32]} Rxf5 {[%emt 0:01:12]} 34. Qf3 {[%emt 0:00:46]} Bxf4 {[%emt 0:02:44]} 35. Qa8+ {[%emt 0:00:22]} Re8 {[%emt 0:00:07]} 36. Rxg8+ {[%emt 0:00:35]} Kxg8 {[%emt 0:00:02]} 37. Qxe8+ {[%emt 0:00:03]} Kh7 {[%emt 0:00:08]} 38. Rf3 {[%emt 0:01:21]} Re5 {[%emt 0:01:30]} 0-1

[Event "Asian Zonal-ch 3.5 Women 2019"]
[Site "Zi Bo"]
[Date "2019.09.07"]
[Round "4.4"]
[White "Yan, Tianqi"]
[Black "Li, Xueyi"]
[Result "1-0"]
[ECO "B13"]
[WhiteElo "2122"]
[BlackElo "2323"]
[Annotator "ChessBase"]
[PlyCount "103"]
[EventDate "2019.09.05"]
[EventType "swiss"]
[EventCountry "CHN"]
[SourceTitle "playchess.com"]
[Source "ChessBase"]
[SourceQuality "1"]
[TimeControl "5400+30"]

1. e4 {[%emt 0:00:00]} c6 {[%emt 0:00:00]} 2. d4 {[%emt 0:00:00]} d5 {[%emt 0:00:00]} 3. exd5 {[%emt 0:00:00]} cxd5 {[%emt 0:00:00]} 4. c4 {[%emt 0:00:00]} Nf6 {[%emt 0:00:00]} 5. Nc3 {[%emt 0:00:05]} Nc6 {[%emt 0:00:54]} 6. Nf3 {[%emt 0:00:13]} Bg4 {[%emt 0:08:17]} 7. cxd5 {[%emt 0:00:26]} Nxd5 {[%emt 0:00:48]} 8. Qb3 {[%emt 0:00:13]} Nb6 {[%emt 0:01:40]} 9. Ne5 {[%emt 0:08:32]} Be6 {[%emt 0:05:47]} 10. Qb5 {[%emt 0:07:17]} Rc8 {[%emt 0:15:06]} 11. Be3 {[%emt 0:06:52]} f6 {[%emt 0:09:45]} 12. Nxc6 {[%emt 0:10:32]} bxc6 {[%emt 0:00:12]} 13. Qa6 {[%emt 0:01:52]} Rc7 {[%emt 0:01:24]} 14. Be2 {[%emt 0:03:45]} g6 {[%emt 0:03:07]} 15. Rc1 {[%emt 0:29:35]} Bg7 {[%emt 0:02:01]} 16. O-O {[%emt 0:02:10]} O-O {[%emt 0:01:13]} 17. Rfd1 {[%emt 0:00:15]} Bf7 {[%emt 0:04:24]} 18. Bf3 {[%emt 0:04:16]} Nc4 {[%emt 0:06:10]} 19. Bf4 {[%emt 0:07:00]} Qc8 {[%emt 0:11:55]} 20. Qxc8 {[%emt 0:00:51]} Rcxc8 {[%emt 0:01:17]} 21. Na4 {[%emt 0:01:56]} g5 {[%emt 0:05:08]} 22. Bg3 {[%emt 0:02:14]} f5 {[%emt 0:00:55]} 23. b3 {[%emt 0:02:34]} Nb6 {[%emt 0:07:03]} 24. Nxb6 {[%emt 0:00:33]} axb6 {[%emt 0:00:01]} 25. h4 {[%emt 0:00:27]} f4 {[%emt 0:06:35]} 26. Bh2 {[%emt 0:00:03]} gxh4 {[%emt 0:03:09]} 27. Rxc6 {[%emt 0:01:23]} Rxc6 {[%emt 0:02:26]} 28. Bxc6 {[%emt 0:00:04]} Bg6 {[%emt 0:00:48]} 29. d5 {[%emt 0:01:22]} Be5 {[%emt 0:00:10]} 30. f3 {[%emt 0:02:07]} Bh5 {[%emt 0:00:40]} 31. Kf2 {[%emt 0:02:39]} Bd6 {[%emt 0:01:21]} 32. Rh1 {[%emt 0:01:33]} Bg6 {[%emt 0:00:11]} 33. Bg1 {[%emt 0:01:10]} h3 {[%emt 0:01:14]} 34. gxh3 {[%emt 0:00:20]} Bb1 {[%emt 0:00:12]} 35. a4 {[%emt 0:00:22]} Bc2 {[%emt 0:00:36]} 36. Kg2 {[%emt 0:01:50]} Bc7 {[%emt 0:00:42]} 37. Bd4 {[%emt 0:01:36]} Rf5 {[%emt 0:00:44]} 38. Rc1 {[%emt 0:00:38]} Rg5+ {[%emt 0:00:57]} 39. Kf2 {[%emt 0:00:19]} Bf5 {[%emt 0:00:37]} 40. h4 {[%emt 0:00:34]} Rg3 {[%emt 0:00:40]} 41. Bb7 {[%emt 0:00:24]} Bd6 {[%emt 0:00:26]} 42. Bxb6 {[%emt 0:00:14]} Rh3 {[%emt 0:00:11]} 43. Rg1+ {[%emt 0:00:18]} Kf7 {[%emt 0:00:21]} 44. a5 {[%emt 0:00:06]} Bg6 {[%emt 0:00:33]} 45. Bc8 {[%emt 0:01:50]} Rh2+ {[%emt 0:00:20]} 46. Rg2 {[%emt 0:00:04]} Rh1 {[%emt 0:00:04]} 47. a6 {[%emt 0:00:19]} Bd3 {[%emt 0:00:53]} 48. Rg5 {[%emt 0:00:41]} e5 {[%emt 0:00:48]} 49. dxe6+ {[%emt 0:00:32]} Ke7 {[%emt 0:00:21]} 50. a7 {[%emt 0:00:20]} Rh2+ {[%emt 0:01:59]} 51. Rg2 {[%emt 0:00:57]} Rh1 {[%emt 0:00:04]} 52. Rg7+ {[%emt 0:00:04]} 1-0

[Event "Asian Zonal-ch 3.5 Women 2019"]
[Site "Zi Bo"]
[Date "2019.09.07"]
[Round "4.5"]
[White "Bai, Xue"]
[Black "Hu, Yu A."]
[Result "1-0"]
[ECO "B80"]
[WhiteElo "2093"]
[BlackElo "2105"]
[Annotator "ChessBase"]
[PlyCount "75"]
[EventDate "2019.09.05"]
[EventType "swiss"]
[EventCountry "CHN"]
[SourceTitle "playchess.com"]
[Source "ChessBase"]
[SourceQuality "1"]
[TimeControl "5400+30"]

1. e4 {[%emt 0:00:00]} c5 {[%emt 0:01:46]} 2. Nf3 {[%emt 0:00:00]} d6 {[%emt 0:00:48]} 3. d4 {[%emt 0:00:00]} cxd4 {[%emt 0:00:08]} 4. Nxd4 {[%emt 0:00:00]} Nf6 {[%emt 0:00:06]} 5. Nc3 {[%emt 0:00:00]} a6 {[%emt 0:00:05]} 6. g3 {[%emt 0:00:00]} e6 {[%emt 0:01:22]} 7. Bg2 {[%emt 0:00:20]} Be7 {[%emt 0:04:20]} 8. O-O {[%emt 0:00:10]} O-O {[%emt 0:00:18]} 9. Re1 {[%emt 0:01:14]} Bd7 {[%emt 0:08:32]} 10. Be3 {[%emt 0:08:43]} Nc6 {[%emt 0:00:14]} 11. h3 {[%emt 0:01:06]} Rc8 {[%emt 0:06:08]} 12. a4 {[%emt 0:02:38]} Ne5 {[%emt 0:03:17]} 13. Nce2 {[%emt 0:06:37]} Nc4 {[%emt 0:12:35]} 14. Bc1 {[%emt 0:00:39]} b5 {[%emt 0:08:10]} 15. b3 {[%emt 0:00:37]} Ne5 {[%emt 0:04:05]} 16. axb5 {[%emt 0:00:28]} axb5 {[%emt 0:00:03]} 17. Bd2 {[%emt 0:03:05]} Qb6 {[%emt 0:00:37]} 18. Be3 {[%emt 0:01:35]} Qb8 {[%emt 0:00:19]} 19. f4 {[%emt 0:02:29]} Nc6 {[%emt 0:00:06]} 20. Qd3 {[%emt 0:01:34]} e5 {[%emt 0:04:34]} 21. Nxc6 {[%emt 0:01:12]} Bxc6 {[%emt 0:02:53]} 22. c4 {[%emt 0:01:09]} Nd7 {[%emt 0:03:08]} 23. Nc3 {[%emt 0:01:13]} bxc4 {[%emt 0:00:51]} 24. bxc4 {[%emt 0:00:03]} Nc5 {[%emt 0:00:08]} 25. Bxc5 {[%emt 0:04:44]} dxc5 {[%emt 0:00:06]} 26. Nd5 {[%emt 0:00:35]} Bxd5 {[%emt 0:00:31]} 27. exd5 {[%emt 0:00:02]} Bd6 {[%emt 0:06:13]} 28. f5 {[%emt 0:03:34]} e4 {[%emt 0:01:07]} 29. Rxe4 {[%emt 0:00:08]} Bxg3 {[%emt 0:00:03]} 30. Rb1 {[%emt 0:02:15]} Qd6 {[%emt 0:00:27]} 31. Qe3 {[%emt 0:02:37]} Rb8 {[%emt 0:08:05]} 32. Rf1 {[%emt 0:00:10]} Bh2+ {[%emt 0:02:45]} 33. Kh1 {[%emt 0:00:08]} Qg3 {[%emt 0:00:39]} 34. Rf3 {[%emt 0:04:03]} Rb1+ {[%emt 0:01:26]} 35. Bf1 {[%emt 0:00:08]} Qd6 {[%emt 0:03:19]} 36. Qe2 {[%emt 0:02:51]} Bg3 {[%emt 0:00:26]} 37. f6 {[%emt 0:01:49]} Re1 {[%emt 0:00:22]} 38. Qd2 {[%emt 0:02:20]} 1-0

[Event "Asian Zonal-ch 3.5 Women 2019"]
[Site "Zi Bo"]
[Date "2019.09.07"]
[Round "4.6"]
[White "Song, Yuxin"]
[Black "Yuan, Ye"]
[Result "1/2-1/2"]
[ECO "B41"]
[WhiteElo "2305"]
[BlackElo "2092"]
[Annotator "ChessBase"]
[PlyCount "75"]
[EventDate "2019.09.05"]
[EventType "swiss"]
[EventCountry "CHN"]
[SourceTitle "playchess.com"]
[Source "ChessBase"]
[SourceQuality "1"]
[TimeControl "5400+30"]

1. e4 {[%emt 0:00:00]} c5 {[%emt 0:00:00]} 2. Nf3 {[%emt 0:00:00]} e6 {[%emt 0:00:00]} 3. d4 {[%emt 0:00:00]} cxd4 {[%emt 0:00:01]} 4. Nxd4 {[%emt 0:00:00]} a6 {[%emt 0:00:16]} 5. c4 {[%emt 0:00:00]} Nf6 {[%emt 0:00:27]} 6. Nc3 {[%emt 0:00:06]} Bb4 {[%emt 0:00:46]} 7. Qd3 {[%emt 0:00:19]} Nc6 {[%emt 0:01:49]} 8. Nxc6 {[%emt 0:00:09]} dxc6 {[%emt 0:01:07]} 9. Qxd8+ {[%emt 0:00:09]} Kxd8 {[%emt 0:00:04]} 10. e5 {[%emt 0:00:05]} Ne4 {[%emt 0:01:44]} 11. a3 {[%emt 0:00:15]} Bxc3+ {[%emt 0:03:04]} 12. bxc3 {[%emt 0:00:02]} f6 {[%emt 0:07:17]} 13. Be3 {[%emt 0:14:33]} fxe5 {[%emt 0:06:19]} 14. Bb6+ {[%emt 0:10:24]} Ke7 {[%emt 0:01:36]} 15. a4 {[%emt 0:01:30]} Bd7 {[%emt 0:04:35]} 16. a5 {[%emt 0:05:46]} c5 {[%emt 0:19:42]} 17. Bd3 {[%emt 0:00:48]} Bc6 {[%emt 0:09:14]} 18. f3 {[%emt 0:04:12]} Nf6 {[%emt 0:00:37]} 19. Bxc5+ {[%emt 0:00:42]} Kf7 {[%emt 0:00:08]} 20. Be2 {[%emt 0:04:24]} Rhd8 {[%emt 0:04:34]} 21. Be3 {[%emt 0:08:54]} Rd7 {[%emt 0:03:30]} 22. Kf2 {[%emt 0:01:32]} h5 {[%emt 0:10:14]} 23. h3 {[%emt 0:05:56]} h4 {[%emt 0:03:55]} 24. Rhd1 {[%emt 0:06:24]} Rxd1 {[%emt 0:11:21]} 25. Rxd1 {[%emt 0:00:18]} e4 {[%emt 0:00:33]} 26. f4 {[%emt 0:07:36]} Re8 {[%emt 0:01:55]} 27. Bd4 {[%emt 0:03:03]} Nd7 {[%emt 0:03:33]} 28. Bg4 {[%emt 0:01:25]} Rg8 {[%emt 0:00:55]} 29. Be5 {[%emt 0:06:19]} Nc5 {[%emt 0:00:44]} 30. Rd6 {[%emt 0:00:29]} g6 {[%emt 0:01:36]} 31. Bd4 {[%emt 0:10:27]} Nd3+ {[%emt 0:00:05]} 32. Ke3 {[%emt 0:00:02]} Re8 {[%emt 0:00:08]} 33. Be2 {[%emt 0:01:39]} Ne1 {[%emt 0:02:25]} 34. Kf2 {[%emt 0:03:03]} Nd3+ {[%emt 0:00:05]} 35. Bxd3 {[%emt 0:00:16]} exd3 {[%emt 0:00:01]} 36. Bc5 {[%emt 0:00:01]} e5 {[%emt 0:00:27]} 37. Rxd3 {[%emt 0:01:51]} exf4 {[%emt 0:00:02]} 38. Bb6 {[%emt 0:01:58]} 1/2-1/2

[Event "Asian Zonal-ch 3.5 Women 2019"]
[Site "Zi Bo"]
[Date "2019.09.07"]
[Round "4.7"]
[White "Zhang, Lanlin"]
[Black "Ren, Xiaoyi"]
[Result "1/2-1/2"]
[ECO "C42"]
[WhiteElo "2203"]
[BlackElo "2231"]
[Annotator "ChessBase"]
[PlyCount "83"]
[EventDate "2019.09.05"]
[EventType "swiss"]
[EventCountry "CHN"]
[SourceTitle "playchess.com"]
[Source "ChessBase"]
[SourceQuality "1"]
[TimeControl "5400+30"]

1. e4 {[%emt 0:00:03]} e5 {[%emt 0:00:00]} 2. Nf3 {[%emt 0:03:33]} Nf6 {[%emt 0:00:00]} 3. Nxe5 {[%emt 0:00:13]} d6 {[%emt 0:00:00]} 4. Nf3 {[%emt 0:00:04]} Nxe4 {[%emt 0:00:02]} 5. Nc3 {[%emt 0:00:03]} Nxc3 {[%emt 0:00:04]} 6. dxc3 {[%emt 0:00:04]} Nc6 {[%emt 0:00:05]} 7. Be3 {[%emt 0:00:05]} Be7 {[%emt 0:00:04]} 8. Qd2 {[%emt 0:00:03]} Be6 {[%emt 0:00:07]} 9. O-O-O {[%emt 0:00:06]} Qd7 {[%emt 0:00:04]} 10. Kb1 {[%emt 0:00:04]} Bf6 {[%emt 0:00:06]} 11. Nd4 {[%emt 0:00:41]} Nxd4 {[%emt 0:03:09]} 12. Bxd4 {[%emt 0:00:09]} Bxd4 {[%emt 0:00:06]} 13. Qxd4 {[%emt 0:00:05]} O-O {[%emt 0:00:06]} 14. h4 {[%emt 0:00:02]} Rfe8 {[%emt 0:00:16]} 15. f3 {[%emt 0:00:15]} Qc6 {[%emt 0:00:30]} 16. Bd3 {[%emt 0:03:47]} Qc5 {[%emt 0:07:30]} 17. Rhe1 {[%emt 0:04:01]} Qxd4 {[%emt 0:01:55]} 18. cxd4 {[%emt 0:00:04]} h6 {[%emt 0:00:09]} 19. b3 {[%emt 0:00:10]} Kf8 {[%emt 0:00:05]} 20. Kb2 {[%emt 0:00:24]} Bd7 {[%emt 0:00:05]} 21. g4 {[%emt 0:00:08]} Bc6 {[%emt 0:00:05]} 22. Be4 {[%emt 0:00:03]} d5 {[%emt 0:00:11]} 23. Bd3 {[%emt 0:00:05]} Rxe1 {[%emt 0:00:09]} 24. Rxe1 {[%emt 0:00:03]} Re8 {[%emt 0:00:10]} 25. Rxe8+ {[%emt 0:00:07]} Kxe8 {[%emt 0:00:07]} 26. Kc3 {[%emt 0:00:14]} Ke7 {[%emt 0:00:05]} 27. Kd2 {[%emt 0:00:05]} Kd6 {[%emt 0:00:04]} 28. f4 {[%emt 0:01:05]} Bd7 {[%emt 0:00:14]} 29. f5 {[%emt 0:04:15]} f6 {[%emt 0:00:07]} 30. h5 {[%emt 0:00:17]} Be8 {[%emt 0:00:27]} 31. Bf1 {[%emt 0:00:44]} c5 {[%emt 0:01:03]} 32. Ke3 {[%emt 0:00:20]} b6 {[%emt 0:00:16]} 33. c3 {[%emt 0:00:08]} Bd7 {[%emt 0:00:03]} 34. b4 {[%emt 0:00:28]} c4 {[%emt 0:00:13]} 35. a3 {[%emt 0:00:05]} Be8 {[%emt 0:00:13]} 36. Be2 {[%emt 0:00:05]} Bd7 {[%emt 0:00:06]} 37. Bd1 {[%emt 0:01:22]} Be8 {[%emt 0:00:04]} 38. a4 {[%emt 0:00:42]} Bd7 {[%emt 0:00:09]} 39. Bc2 {[%emt 0:00:12]} Be8 {[%emt 0:00:02]} 40. Bd1 {[%emt 0:00:06]} Bd7 {[%emt 0:00:03]} 41. Bc2 {[%emt 0:00:04]} Be8 {[%emt 0:00:03]} 42. Bd1 {[%emt 0:00:03]} 1/2-1/2

[Event "Asian Zonal-ch 3.5 Women 2019"]
[Site "Zi Bo"]
[Date "2019.09.07"]
[Round "4.8"]
[White "Ning, Kaiyu"]
[Black "Zhao, Shengxin"]
[Result "1-0"]
[ECO "E04"]
[WhiteElo "2354"]
[BlackElo "2162"]
[Annotator "ChessBase"]
[PlyCount "107"]
[EventDate "2019.09.05"]
[EventType "swiss"]
[EventCountry "CHN"]
[SourceTitle "playchess.com"]
[Source "ChessBase"]
[SourceQuality "1"]
[TimeControl "5400+30"]

1. d4 {[%emt 0:00:00]} Nf6 {[%emt 0:00:04]} 2. c4 {[%emt 0:00:00]} e6 {[%emt 0:00:05]} 3. g3 {[%emt 0:00:00]} d5 {[%emt 0:00:13]} 4. Bg2 {[%emt 0:00:00]} dxc4 {[%emt 0:01:17]} 5. Nf3 {[%emt 0:00:07]} c6 {[%emt 0:02:16]} 6. Ne5 {[%emt 0:00:30]} c5 {[%emt 0:01:11]} 7. Na3 {[%emt 0:01:17]} cxd4 {[%emt 0:06:08]} 8. Naxc4 {[%emt 0:00:07]} Bc5 {[%emt 0:13:49]} 9. a3 {[%emt 0:00:02]} a5 {[%emt 0:03:39]} 10. Qa4+ {[%emt 0:00:03]} Nbd7 {[%emt 0:04:12]} 11. b4 {[%emt 0:00:50]} Be7 {[%emt 0:02:23]} 12. Bb2 {[%emt 0:01:26]} O-O {[%emt 0:00:52]} 13. Bxd4 {[%emt 0:01:31]} Nxe5 {[%emt 0:12:05]} 14. Bxe5 {[%emt 0:00:02]} Bd7 {[%emt 0:02:47]} 15. b5 {[%emt 0:00:43]} Nd5 {[%emt 0:01:34]} 16. O-O {[%emt 0:03:46]} Bf6 {[%emt 0:06:39]} 17. Rfd1 {[%emt 0:19:48]} Bxe5 {[%emt 0:14:59]} 18. Nxe5 {[%emt 0:00:01]} Be8 {[%emt 0:00:16]} 19. Bxd5 {[%emt 0:10:57]} exd5 {[%emt 0:00:12]} 20. Qb3 {[%emt 0:00:15]} Qb6 {[%emt 0:08:48]} 21. Rxd5 {[%emt 0:00:55]} Bc6 {[%emt 0:00:42]} 22. Nxc6 {[%emt 0:15:13]} bxc6 {[%emt 0:00:10]} 23. Rd6 {[%emt 0:00:11]} Qxb5 {[%emt 0:01:26]} 24. Qc2 {[%emt 0:00:09]} Qe5 {[%emt 0:05:29]} 25. Rad1 {[%emt 0:00:07]} Rac8 {[%emt 0:05:51]} 26. e3 {[%emt 0:00:34]} c5 {[%emt 0:01:19]} 27. R6d5 {[%emt 0:00:07]} Qc7 {[%emt 0:01:12]} 28. Qc4 {[%emt 0:00:14]} Qb6 {[%emt 0:00:27]} 29. Rc1 {[%emt 0:02:07]} Rfd8 {[%emt 0:00:47]} 30. Rxc5 {[%emt 0:01:28]} Rxc5 {[%emt 0:00:09]} 31. Qxc5 {[%emt 0:00:01]} Qb2 {[%emt 0:00:12]} 32. Qc3 {[%emt 0:02:33]} Qb5 {[%emt 0:01:26]} 33. Qc7 {[%emt 0:01:10]} Re8 {[%emt 0:01:09]} 34. Qc6 {[%emt 0:00:42]} Qb8 {[%emt 0:02:35]} 35. Rc5 {[%emt 0:00:29]} h6 {[%emt 0:00:19]} 36. Rxa5 {[%emt 0:01:47]} Rd8 {[%emt 0:00:20]} 37. Kg2 {[%emt 0:00:34]} Kh7 {[%emt 0:00:23]} 38. Rd5 {[%emt 0:02:41]} Rc8 {[%emt 0:00:22]} 39. Rb5 {[%emt 0:00:20]} Qxg3+ {[%emt 0:00:15]} 40. hxg3 {[%emt 0:00:22]} Rxc6 {[%emt 0:00:03]} 41. a4 {[%emt 0:00:18]} Rc4 {[%emt 0:01:13]} 42. a5 {[%emt 0:00:06]} Ra4 {[%emt 0:00:03]} 43. f4 {[%emt 0:01:15]} g6 {[%emt 0:01:30]} 44. g4 {[%emt 0:00:11]} Kg7 {[%emt 0:00:13]} 45. Kf3 {[%emt 0:00:14]} Ra3 {[%emt 0:00:18]} 46. Ke4 {[%emt 0:01:22]} Ra4+ {[%emt 0:00:33]} 47. Kd5 {[%emt 0:02:16]} Ra3 {[%emt 0:01:00]} 48. Kd4 {[%emt 0:08:22]} Ra4+ {[%emt 0:00:22]} 49. Kc5 {[%emt 0:01:31]} h5 {[%emt 0:00:28]} 50. gxh5 {[%emt 0:00:10]} gxh5 {[%emt 0:00:02]} 51. Kb6 {[%emt 0:00:06]} Kh6 {[%emt 0:01:08]} 52. a6 {[%emt 0:04:31]} h4 {[%emt 0:00:02]} 53. a7 {[%emt 0:00:08]} h3 {[%emt 0:00:22]} 54. Ra5 {[%emt 0:00:16]} 1-0

[Event "Asian Zonal-ch 3.5 Women 2019"]
[Site "Zi Bo"]
[Date "2019.09.07"]
[Round "4.9"]
[White "Zhang, Yuxuan"]
[Black "Zhou, Zirun"]
[Result "1-0"]
[ECO "C54"]
[WhiteElo "1979"]
[BlackElo "2155"]
[Annotator "ChessBase"]
[PlyCount "71"]
[EventDate "2019.09.05"]
[EventType "swiss"]
[EventCountry "CHN"]
[SourceTitle "playchess.com"]
[Source "ChessBase"]
[SourceQuality "1"]
[TimeControl "5400+30"]

1. e4 {[%emt 0:00:00]} e5 {[%emt 0:00:00]} 2. Nf3 {[%emt 0:00:00]} Nc6 {[%emt 0:00:00]} 3. Bc4 {[%emt 0:00:00]} Bc5 {[%emt 0:00:00]} 4. c3 {[%emt 0:00:00]} Nf6 {[%emt 0:00:00]} 5. d3 {[%emt 0:00:10]} d6 {[%emt 0:00:17]} 6. O-O {[%emt 0:01:02]} a5 {[%emt 0:02:16]} 7. a4 {[%emt 0:06:02]} O-O {[%emt 0:00:13]} 8. Nbd2 {[%emt 0:02:42]} Be6 {[%emt 0:01:55]} 9. Re1 {[%emt 0:02:22]} Qb8 {[%emt 0:03:25]} 10. Nf1 {[%emt 0:00:44]} Qa7 {[%emt 0:02:50]} 11. Be3 {[%emt 0:01:26]} Bxc4 {[%emt 0:00:34]} 12. dxc4 {[%emt 0:02:39]} Nxe4 {[%emt 0:00:26]} 13. Qd3 {[%emt 0:02:10]} f5 {[%emt 0:02:08]} 14. Ng3 {[%emt 0:04:24]} Nxg3 {[%emt 0:01:55]} 15. Qd5+ {[%emt 0:00:35]} Kh8 {[%emt 0:00:18]} 16. hxg3 {[%emt 0:00:13]} Rae8 {[%emt 0:01:02]} 17. Ng5 {[%emt 0:01:22]} Nd8 {[%emt 0:00:24]} 18. b4 {[%emt 0:00:21]} axb4 {[%emt 0:02:03]} 19. cxb4 {[%emt 0:00:18]} Bxe3 {[%emt 0:01:08]} 20. Rxe3 {[%emt 0:00:07]} e4 {[%emt 0:09:23]} 21. Qd1 {[%emt 0:06:22]} Ne6 {[%emt 0:00:33]} 22. Nxe6 {[%emt 0:01:09]} Rxe6 {[%emt 0:00:07]} 23. a5 {[%emt 0:00:26]} c6 {[%emt 0:05:53]} 24. Ra2 {[%emt 0:01:41]} Rd8 {[%emt 0:03:40]} 25. b5 {[%emt 0:09:29]} cxb5 {[%emt 0:00:34]} 26. cxb5 {[%emt 0:00:13]} d5 {[%emt 0:09:25]} 27. a6 {[%emt 0:05:15]} bxa6 {[%emt 0:01:15]} 28. Rea3 {[%emt 0:01:14]} e3 {[%emt 0:00:20]} 29. Rxa6 {[%emt 0:00:36]} exf2+ {[%emt 0:03:21]} 30. Rxf2 {[%emt 0:00:08]} Rxa6 {[%emt 0:00:25]} 31. bxa6 {[%emt 0:00:08]} Qxa6 {[%emt 0:00:11]} 32. Rxf5 {[%emt 0:00:06]} Qb6+ {[%emt 0:01:14]} 33. Kh2 {[%emt 0:00:07]} Qe6 {[%emt 0:00:11]} 34. Qg4 {[%emt 0:00:47]} Qd7 {[%emt 0:06:30]} 35. Rf8+ {[%emt 0:00:11]} Rxf8 {[%emt 0:00:06]} 36. Qxd7 {[%emt 0:00:06]} 1-0